bitfinex-derivatives/quotes_SOLF0:USTF0_20250325
["timestamp","ask_amount","ask_price","bid_price","bid_amount"]
[1742920985590,6.9541,143.79,143.76,7.00022189]
[1742920985897,0.04960607,143.8,143.76,7.00022189]
[1742920986098,0.04960607,143.8,143.77,6.9547]
[1742920986598,6.954,143.79,143.76,0.04532189]
[1742920986897,6.954,143.79,143.76,7.00032189]
[1742920987291,0.04960607,143.8,143.76,0.04532189]
[1742920987695,0.04960607,143.8,143.76,7.00022189]
[1742920989297,0.04960607,143.8,143.76,0.04532189]
[1742920989892,0.04960607,143.8,143.76,7.00042189]
[1742920990098,0.04960607,143.8,143.76,0.04532189]
[1742920990297,6.9546,143.78,143.76,0.04532189]
[1742920991300,0.04960607,143.8,143.76,0.04532189]
[1742920991898,6.954,143.79,143.76,7.00032189]
[1742920992101,6.954,143.79,143.76,0.04532189]
[1742920992401,6.9545,143.78,143.76,0.04532189]
[1742920993000,6.9547,143.77,143.76,0.04532189]
[1742920994400,6.9544,143.78,143.76,0.04532189]
[1742920994799,0.04960607,143.8,143.76,0.04532189]
[1742920995003,0.04960607,143.8,143.69,26.84]
[1742920995200,26.84,143.82,143.69,26.84]
[1742920995400,6.9531,143.81,143.69,40.7567]
[1742920995598,26.84,143.84,143.69,26.84]
[1742920995798,26.84,143.84,143.77,6.9543]
[1742920996001,6.9529,143.81,143.77,26.84]
[1742920996199,6.9529,143.81,143.79,0.04679795]
[1742920997307,6.9532,143.8,143.79,0.04679795]
[1742921000707,6.9546,143.78,143.76,26.84]
[1742921001003,6.9546,143.78,143.74,26.84]
[1742921001209,6.9546,143.78,143.75,6.9554]
[1742921001596,7.00077793,143.78,143.75,6.9554]
[1742921001801,7.00077793,143.78,143.75,7.00510904]
[1742921002204,0.04617793,143.78,143.75,0.04970904]
[1742921002605,6.9547,143.77,143.75,0.04970904]
[1742921003313,0.04617793,143.78,143.77,6.9547]
[1742921003609,0.04617793,143.78,143.75,0.04970904]
[1742921003806,0.04617793,143.78,143.77,6.9547]
[1742921004011,0.04617793,143.78,143.77,33.7947]
[1742921007014,28.43691658,143.88,143.81,6.9527]
[1742921007209,28.43691658,143.88,143.77,26.84]
[1742921007617,6.9499,143.87,143.77,26.84]
[1742921007812,28.43691658,143.88,143.77,26.84]
[1742921008011,28.43691658,143.88,143.85,6.9508]
[1742921008211,6.9507,143.86,143.83,26.84]
[1742921008413,28.43691658,143.88,143.85,0.0469837]
[1742921008618,0.0475781,143.86,143.8,26.84]
[1742921008806,6.9515,143.84,143.8,26.84]
[1742921009415,0.0475781,143.86,143.8,26.84]
[1742921009817,0.0475781,143.86,143.82,0.04829255]
[1742921010115,6.9521,143.83,143.82,0.04829255]
[1742921010916,6.9531,143.81,143.79,26.84]
[1742921011118,43.28605225,143.88,143.78,26.84]
[1742921011518,6.952,143.83,143.78,26.84]
[1742921011720,6.952,143.83,143.8,6.953]
[1742921011920,43.28605225,143.88,143.78,26.84]
[1742921012223,0.05211977,143.83,143.82,0.04450726]
[1742921012421,26.84,143.84,143.78,26.84]
[1742921012619,6.9533,143.8,143.78,26.84]
[1742921012822,26.84,143.84,143.78,26.84]
[1742921013217,6.9537,143.79,143.78,26.84]
[1742921013520,0.04625012,143.8,143.77,0.04756614]
[1742921013717,6.9552,143.76,143.74,26.84]
[1742921013917,26.88679403,143.8,143.71,26.84]
[1742921014116,26.84,143.8,143.71,26.84]
[1742921014326,6.956,143.75,143.73,6.9565]
[1742921015323,7.00781251,143.75,143.73,6.9565]
[1742921015822,0.05181251,143.75,143.73,6.9565]
[1742921018225,0.05181251,143.75,143.74,6.9561]
[1742921018915,26.84,143.84,143.71,26.84]
[1742921019114,28.43691658,143.86,143.71,26.84]
[1742921019115,26.84,143.85,143.71,26.84]
[1742921019314,6.9526,143.82,143.71,26.84]
[1742921019519,55.27691658,143.86,143.71,26.84]
[1742921019718,55.27691658,143.86,143.72,1.39159476]
[1742921019921,28.43691658,143.86,143.72,1.39159476]
[1742921020125,6.9511,143.85,143.81,6.9524]
[1742921020325,12.38234676,143.88,143.8,26.84]
[1742921020629,0.04438683,143.84,143.82,0.04411929]
[1742921020820,55.27691658,143.89,143.82,0.04411929]
[1742921021019,0.04894139,143.84,143.82,0.04411929]
[1742921021315,0.04524441,143.84,143.82,0.04411929]
[1742921021923,6.99664441,143.84,143.82,0.04411929]
[1742921022227,6.99664441,143.84,143.82,6.99631929]
[1742921022228,0.04524441,143.84,143.82,6.99631929]
[1742921022428,0.04524441,143.84,143.82,0.04411929]
[1742921023424,0.04524441,143.84,143.83,6.9518]
[1742921025729,0.04524441,143.84,143.82,0.04411929]
[1742921026128,0.04524441,143.84,143.82,6.99591929]
[1742921026529,0.04524441,143.84,143.82,0.04411929]
[1742921027330,6.99704441,143.84,143.82,0.04411929]
[1742921027531,0.04524441,143.84,143.82,0.04411929]
[1742921027929,0.04524441,143.84,143.83,6.9518]
[1742921033134,28.43691658,143.95,143.83,23.40605225]
[1742921033322,28.43691658,143.95,143.84,26.84]
[1742921033528,28.43691658,143.95,143.85,19.11259656]
[1742921033734,28.43691658,143.95,143.86,1.27620716]
[1742921033937,28.43691658,143.95,143.85,17.8363894]
[1742921034130,28.43691658,143.95,143.86,1.27611574]
[1742921034332,0.04532722,143.91,143.89,0.05105988]
[1742921034533,40.81926334,143.96,143.9,26.84]
[1742921034732,0.05083403,143.91,143.9,33.7884]
[1742921034933,40.81926334,143.96,143.9,26.84]
[1742921035136,0.04516292,143.92,143.9,26.84]
[1742921035637,0.04516292,143.92,143.91,6.9479]
[1742921037440,0.04516292,143.92,143.89,0.05105988]
[1742921037638,0.04516292,143.92,143.9,26.82]
[1742921039337,6.99266292,143.92,143.9,26.82]
[1742921040140,0.04516292,143.92,143.89,0.05105988]
[1742921040743,6.9479,143.91,143.89,0.05105988]
[1742921040931,0.04516292,143.92,143.89,0.05105988]
[1742921041341,6.9479,143.91,143.89,0.05105988]
[1742921041834,0.04516292,143.92,143.89,0.05105988]
[1742921042439,0.04516292,143.92,143.91,6.9479]
[1742921051245,26.8,144.04,143.89,259.63451213]
[1742921051445,26.8,144.04,143.89,259.58345225]
[1742921051848,26.8,144.04,143.97,6.9447]
[1742921052243,6.9435,144.01,143.99,0.05299328]
[1742921052644,0.04791124,144.02,143.99,0.05299328]
[1742921052845,6.9436,144.0,143.99,0.05299328]
[1742921055152,0.04791124,144.02,143.99,0.05299328]
[1742921055549,0.04791124,144.02,144.0,26.8]
[1742921056052,0.04791124,144.02,144.01,6.9431]
[1742921056447,103.42810226,144.1,144.04,6.9414]
[1742921056647,103.42810226,144.1,144.05,26.8]
[1742921056847,6.9393,144.09,144.04,26.8]
[1742921057046,6.9393,144.09,144.05,6.9411]
[1742921057248,28.43691658,144.11,144.04,26.8]
[1742921057449,0.05333272,144.08,144.06,0.05337411]
[1742921059050,6.99343272,144.08,144.06,0.05337411]
[1742921059351,0.05333272,144.08,144.06,0.05337411]
[1742921059553,6.9402,144.07,144.06,0.05337411]
[1742921059747,0.05333272,144.08,143.99,26.8]
[1742921059953,6.9424,144.03,143.99,26.8]
[1742921060345,26.8,144.09,143.99,26.8]
[1742921060546,6.9414,144.05,143.99,26.8]
[1742921060842,0.05074275,144.03,144.01,0.05255886]
[1742921061041,26.8,144.09,144.01,0.05255886]
[1742921061242,0.05360163,144.03,144.01,0.05255886]
[1742921061440,26.8,144.09,144.01,0.05255886]
[1742921061745,6.9425,144.03,144.01,0.05255886]
[1742921061948,0.04906636,144.06,144.01,0.05255886]
[1742921062150,6.9414,144.05,144.01,0.05255886]
[1742921063056,6.98996636,144.06,144.01,0.05255886]
[1742921063353,0.04906636,144.06,144.01,0.05255886]
[1742921063549,6.9412,144.05,144.01,0.05255886]
[1742921063851,0.04906636,144.06,144.01,0.05255886]
[1742921064241,6.9425,144.03,144.01,0.05255886]
[1742921065840,6.9426,144.02,144.01,0.05255886]
[1742921069256,6.98826487,144.03,144.01,0.05255886]
[1742921069648,0.04596487,144.03,144.01,0.05255886]
[1742921069853,6.98816487,144.03,144.01,0.05255886]
[1742921071454,0.04596487,144.03,144.01,6.99555886]
[1742921071855,0.04596487,144.03,144.01,0.05255886]
[1742921072056,6.98836487,144.03,144.01,0.05255886]
[1742921072254,0.04596487,144.03,144.01,0.05255886]
[1742921072458,6.98836487,144.03,144.01,0.05255886]
[1742921073158,6.98836487,144.03,144.01,6.99555886]
[1742921073560,6.98836487,144.03,144.01,0.05255886]
[1742921074361,6.9426,144.02,144.01,0.05255886]
[1742921074659,0.04596487,144.03,144.01,0.05255886]
[1742921074860,6.98826487,144.03,144.01,6.99545886]
[1742921075158,6.98826487,144.03,144.01,0.05255886]
[1742921075860,6.9426,144.02,144.01,0.05255886]
[1742921079760,6.9426,144.02,144.01,5.886e-05]
[1742921079966,6.9454,143.97,143.95,229.14]
[1742921080266,6.9454,143.97,143.94,33.7261]
[1742921080462,10.49411621,144.04,143.94,26.78]
[1742921080662,26.78,144.03,143.94,26.78]
[1742921080870,40.6643,144.03,143.94,26.78]
[1742921081064,0.04391272,144.0,143.97,0.04733423]
[1742921081660,6.9445,143.98,143.97,0.04733423]
[1742921083274,0.04391272,144.0,143.97,0.04733423]
[1742921084374,0.04391272,144.0,143.99,6.944]
[1742921087081,26.78,144.07,144.01,6.943]
[1742921087381,26.78,144.08,144.01,6.943]
[1742921087581,6.9419,144.04,144.01,6.943]
[1742921087781,26.78,144.08,144.0,6.9434]
[1742921088078,6.9423,144.03,144.0,6.9434]
[1742921088477,6.9423,144.03,144.0,6.9923758]
[1742921088776,6.9423,144.03,144.01,6.943]
[1742921089781,6.9423,144.03,144.0,6.9922758]
[1742921090280,6.9423,144.03,144.0,0.0489758]
[1742921091481,6.9423,144.03,144.01,6.9431]
[1742921091680,0.05231379,144.05,144.0,0.0489758]
[1742921092579,0.05231379,144.05,144.0,6.9920758]
[1742921092780,0.05231379,144.05,144.0,0.0489758]
[1742921093373,6.942,144.04,144.0,0.0489758]
[1742921093787,6.942,144.04,144.02,6.9424]
[1742921094084,0.05231379,144.05,144.0,0.0489758]
[1742921095179,0.05231379,144.05,144.04,6.9416]
[1742921098676,28.43691658,144.12,144.03,26.82649042]
[1742921098876,35.37501658,144.12,144.03,26.78]
[1742921099083,35.37501658,144.12,144.09,6.939]
[1742921099386,35.37501658,144.12,144.08,26.76]
[1742921099787,6.98466011,144.11,144.09,0.04425583]
[1742921101891,0.04626011,144.11,144.09,0.04425583]
[1742921102493,6.9387,144.1,144.09,0.04425583]
[1742921102791,0.04626011,144.11,144.05,26.76]
[1742921102992,6.94,144.08,144.05,26.76]
[1742921103192,55.19691658,144.16,144.05,26.76]
[1742921103396,67.53507472,144.16,144.05,26.76]
[1742921103589,6.9393,144.09,144.05,26.76]
[1742921104092,0.04572352,144.08,144.06,0.04691604]
[1742921105987,6.98552352,144.08,144.06,0.04691604]
[1742921108798,0.04572352,144.08,144.06,0.04691604]
[1742921110096,6.98552352,144.08,144.06,0.04691604]
[1742921110297,0.04572352,144.08,144.06,0.04691604]
[1742921111997,6.9402,144.07,144.06,0.04691604]
[1742921113200,6.9402,144.07,144.06,1.604e-05]
[1742921113597,6.9426,144.02,144.01,26.76]
[1742921115498,0.05107109,144.03,143.96,26.76]
[1742921115697,13.8832,144.05,143.96,26.76]
[1742921116297,6.945,143.97,143.96,26.76]
[1742921117105,0.04945231,143.98,143.96,26.76]
[1742921117404,0.04945231,143.98,143.96,33.7053]
[1742921117597,0.04945231,143.98,143.96,26.76]
[1742921117798,26.76,144.06,143.96,26.76]
[1742921117996,26.76,144.09,143.99,6.9438]
[1742921118208,26.76,144.09,144.0,26.76]
[1742921118703,6.943,144.02,144.0,26.76]
[1742921118904,0.05302717,144.06,144.03,0.05136978]
[1742921119106,26.76,144.09,144.0,26.76]
[1742921119306,0.04716517,144.06,144.03,0.04515926]
[1742921120006,6.9416,144.04,144.03,0.04515926]
[1742921120812,6.9431,144.01,144.0,26.76]
[1742921121011,13.8797,144.08,143.97,26.76]
[1742921121308,43.15937364,144.09,143.97,26.76]
[1742921121704,13.8807,144.07,143.97,26.76]
[1742921121908,0.05049693,144.04,144.02,4.094e-05]
[1742921122214,26.81049693,144.04,144.02,4.094e-05]
[1742921122611,6.9421,144.03,144.02,4.094e-05]
[1742921122913,33.75049693,144.04,143.91,229.0]
[1742921123109,26.76,144.04,143.92,26.76]
[1742921123718,6.9433,144.01,143.92,26.76]
[1742921124012,0.04412166,143.98,143.92,26.76]
[1742921124213,6.98892166,143.98,143.92,26.76]
[1742921124714,0.04412166,143.98,143.95,6.9455]
[1742921125205,0.04412166,143.98,143.96,26.76]
[1742921125413,6.98862166,143.98,143.96,26.76]
[1742921126005,0.04412166,143.98,143.97,6.945]
[1742921127305,0.04412166,143.98,143.96,33.7054]
[1742921127503,0.04412166,143.98,143.96,26.76]
[1742921128313,0.04412166,143.98,143.97,6.945]
[1742921128615,2.166e-05,143.98,143.97,6.945]
[1742921128807,2.166e-05,143.98,143.96,33.7052]
[1742921129006,2.166e-05,143.98,143.96,26.76]
[1742921129609,2.166e-05,143.98,143.97,6.945]
[1742921132113,2.166e-05,143.98,143.96,33.75099174]
[1742921132607,6.94462166,143.98,143.96,26.80579174]
[1742921132915,2.166e-05,143.98,143.96,0.04579174]
[1742921133415,6.945,143.97,143.96,0.04579174]
[1742921133815,6.9467,143.94,143.91,33.7076]
[1742921134212,26.76,144.0,143.91,6.9476]
[1742921134412,6.9468,143.94,143.91,6.9476]
[1742921134914,6.9468,143.94,143.9,26.76]
[1742921134915,0.05032702,143.94,143.92,6.9473]
[1742921135814,0.05032702,143.94,143.93,6.9469]
[1742921137605,26.76,144.03,143.98,6.9442]
[1742921137805,6.9428,144.02,143.98,6.9442]
[1742921138007,26.76,144.03,143.98,6.9442]
[1742921138206,26.76,144.03,143.95,26.76]
[1742921138814,0.05086509,144.0,143.98,0.04664977]
[1742921140315,6.944,143.99,143.98,0.04664977]
[1742921141613,0.05086509,144.0,143.98,0.04664977]
[1742921141819,0.05086509,144.0,143.99,6.944]
[1742921142719,28.43691658,144.08,143.99,26.74]
[1742921143217,6.941,144.06,144.03,6.9418]
[1742921143921,6.98848866,144.06,144.04,6.9416]
[1742921144221,0.04748866,144.06,144.03,0.04464809]
[1742921144618,6.9416,144.04,144.03,0.04464809]
[1742921144918,0.04748866,144.06,143.98,33.6842]
[1742921145107,55.17691658,144.08,143.98,26.74]
[1742921145512,26.74,144.08,143.98,26.74]
[1742921145816,6.9434,144.01,143.98,33.6843]
[1742921146119,26.74,144.08,143.98,26.79199392]
[1742921146420,0.05357364,144.01,143.98,33.6844]
[1742921146715,6.9434,144.01,143.98,33.6844]
[1742921146917,26.74,144.08,143.98,26.79088131]
[1742921147218,0.05210045,144.01,143.98,26.74]
[1742921147523,26.74,144.04,143.98,26.74]
[1742921148522,6.9434,144.01,143.98,33.6842]
[1742921148816,0.04487672,144.02,143.98,26.74]
[1742921149023,6.9438,144.0,143.98,26.74]
[1742921149524,0.04487672,144.02,143.98,33.6843]
[1742921149919,6.9432,144.01,143.98,33.6843]
[1742921150422,0.04487672,144.02,143.98,33.6843]
[1742921150617,6.9436,144.0,143.98,33.6843]
[1742921151919,6.9433,144.01,143.98,26.74]
[1742921152219,6.9433,144.01,143.99,6.944]
[1742921152523,0.04487672,144.02,143.98,33.6843]
[1742921152714,0.04487672,144.02,143.98,26.74]
[1742921152913,0.04487672,144.02,143.94,26.74]
[1742921153114,26.74,144.03,143.94,33.6862]
[1742921153312,0.04736411,143.99,143.94,33.6862]
[1742921154021,0.04736411,143.99,143.93,26.74]
[1742921154225,0.04736411,143.99,143.88,360.0]
[1742921154419,0.04736411,143.99,143.92,26.74]
[1742921154916,0.04736411,143.99,143.92,33.6871]
[1742921155323,6.9467,143.94,143.92,33.6871]
[1742921155825,6.99729319,143.94,143.92,33.6871]
[1742921156621,0.05059319,143.94,143.84,28.8559887]
[1742921156826,26.74,143.99,143.86,26.74]
[1742921157023,0.05292483,143.91,143.85,240.08646143]
[1742921157326,0.04390425,143.89,143.85,230.55033715]
[1742921157523,26.74,143.95,143.86,26.74]
[1742921157723,0.05238909,143.88,143.86,33.6899]
[1742921157916,26.74,143.95,143.86,33.6899]
[1742921158118,0.04857242,143.88,143.85,255.9]
[1742921158322,6.9497,143.88,143.85,262.8505]
[1742921158522,0.04601489,143.88,143.85,255.9]
[1742921158730,6.99561489,143.88,143.85,262.8505]
[1742921159024,6.99561489,143.88,143.79,38.39211298]
[1742921159025,0.04601489,143.88,143.79,38.39211298]
[1742921159221,26.74,143.9,143.8,26.74]
[1742921159621,0.04696234,143.85,143.8,26.74]
[1742921160627,0.04696234,143.85,143.81,26.74]
[1742921160829,0.04696234,143.85,143.83,6.9518]
[1742921161230,0.04696234,143.85,143.81,26.74]
[1742921161431,0.04696234,143.85,143.83,6.9517]
[1742921161734,0.04696234,143.85,143.81,26.74]
[1742921163232,0.04696234,143.85,143.84,6.9513]
[1742921164224,0.04696234,143.85,143.81,26.74]
[1742921164732,0.04696234,143.85,143.77,229.18]
[1742921165129,0.04696234,143.85,143.75,26.74]
[1742921165330,0.04696234,143.85,143.76,6.9549]
[1742921165529,7.00154959,143.81,143.75,26.74]
[1742921165735,0.04854959,143.81,143.77,6.9543]
[1742921165927,0.04854959,143.81,143.75,26.74]
[1742921166328,0.04854959,143.81,143.78,6.9541]
[1742921166527,0.04854959,143.81,143.75,26.74]
[1742921166833,0.04854959,143.81,143.76,6.9548]
[1742921167031,0.04854959,143.81,143.75,26.74]
[1742921167434,0.04854959,143.81,143.77,6.9546]
[1742921167636,0.04854959,143.81,143.75,26.74]
[1742921168034,6.954,143.79,143.76,6.9549]
[1742921168332,6.954,143.79,143.74,26.76]
[1742921168530,0.04854959,143.81,143.74,26.76]
[1742921168743,26.74,143.86,143.74,26.76]
[1742921168935,0.04687641,143.79,143.74,26.76]
[1742921169133,0.04687641,143.79,143.77,6.9546]
[1742921169334,0.04687641,143.79,143.74,26.76]
[1742921169836,0.04687641,143.79,143.78,6.9542]
[1742921170037,0.04687641,143.79,143.78,33.7142]
[1742921170728,0.04687641,143.79,143.75,26.76]
[1742921170932,26.76,143.86,143.75,26.76]
[1742921171234,26.76,143.86,143.77,6.9547]
[1742921171438,0.04796465,143.82,143.75,26.76]
[1742921172342,0.04796465,143.82,143.81,6.9527]
[1742921172542,0.04796465,143.82,143.81,33.7127]
[1742921172736,0.04796465,143.82,143.81,26.76]
[1742921173338,7.00026465,143.82,143.81,26.76]
[1742921173636,0.04796465,143.82,143.81,26.76]
[1742921174545,0.04796465,143.82,143.81,33.7127]
[1742921175434,229.26,143.92,143.81,26.76]
[1742921175435,26.76,143.92,143.81,26.76]
[1742921175640,37.23507364,143.97,143.81,26.76]
[1742921175641,26.76,143.95,143.81,26.76]
[1742921176647,0.04959859,143.89,143.87,0.04900787]
[1742921176941,43.15937364,143.96,143.8,360.0]
[1742921177142,43.15937364,143.96,143.87,0.05182297]
[1742921177143,0.05007713,143.89,143.87,0.05182297]
[1742921177338,43.15937364,143.96,143.85,26.76]
[1742921177544,0.04941658,143.89,143.87,0.04607249]
[1742921177944,43.15937364,143.96,143.85,26.76]
[1742921178148,43.15937364,143.96,143.87,0.05106783]
[1742921178349,0.05001381,143.92,143.85,26.76]
[1742921178648,16.39937364,144.02,143.9,0.04875182]
[1742921178847,16.39937364,144.02,143.9,26.76]
[1742921179044,16.39937364,144.02,143.95,0.04497731]
[1742921179555,0.05302192,144.0,143.95,0.04497731]
[1742921179743,26.76,143.99,143.9,26.76]
[1742921180350,26.76,143.99,143.79,245.79937364]
[1742921180550,16.39937364,143.98,143.81,26.76]
[1742921180846,0.0521708,143.91,143.81,26.76]
[1742921181047,26.76,143.92,143.81,26.76]
[1742921181247,0.05220167,143.87,143.81,26.76]
[1742921181448,0.05220167,143.87,143.84,6.9508]
[1742921182046,0.05220167,143.87,143.81,26.76]
[1742921182951,0.05220167,143.87,143.84,6.9508]
[1742921183354,0.05220167,143.87,143.81,26.76]
[1742921184260,1.67e-06,143.87,143.86,6.9503]
[1742921184451,26.74,144.01,143.86,26.74]
[1742921185353,6.9453,143.97,143.94,6.9462]
[1742921185552,0.05320509,143.95,143.94,26.74]
[1742921185749,26.74,144.01,143.94,26.74]
[1742921186053,0.04395281,143.96,143.94,26.74]
[1742921186358,0.04884418,143.96,143.94,26.78532542]
[1742921187161,0.04884418,143.96,143.94,33.73152542]
[1742921187361,0.04884418,143.96,143.94,26.78532542]
[1742921188257,0.04884418,143.96,143.95,6.946]
[1742921191261,13.8802,144.08,143.94,26.78532542]
[1742921191262,13.8802,144.08,143.98,6.9442]
[1742921191462,26.74,144.07,143.98,26.74]
[1742921192663,0.04689047,144.04,144.01,5.399e-05]
[1742921192865,26.29407756,144.06,143.95,33.6859]
[1742921193054,13.8824,144.05,143.95,26.74]
[1742921193255,26.74,144.07,143.95,26.74]
[1742921193454,6.9436,144.0,143.95,26.74]
[1742921194057,0.04767774,143.99,143.96,0.04647213]
[1742921194558,6.9445,143.98,143.96,0.05228527]
[1742921195366,6.945,143.97,143.96,0.05228527]
[1742921195765,0.05115102,143.99,143.96,0.05228527]
[1742921196269,6.9448,143.98,143.96,0.05228527]
[1742921196668,0.05115102,143.99,143.96,0.05228527]
[1742921196861,6.945,143.97,143.96,0.05228527]
[1742921198971,6.948,143.91,143.89,6.9487]
[1742921199165,26.77115102,143.99,143.9,26.72]
[1742921199365,26.72,143.99,143.9,26.72]
[1742921199565,6.9472,143.93,143.9,33.6683]
[1742921199959,6.9467,143.94,143.91,6.9477]
[1742921200267,0.04720277,143.93,143.91,6.9477]
[1742921200468,0.04720277,143.93,143.9,26.72]
[1742921200670,0.04720277,143.93,143.92,6.9474]
[1742921204069,6.99430277,143.93,143.9,26.72]
[1742921204265,0.04720277,143.93,143.9,26.72]
[1742921205465,0.04720277,143.93,143.92,6.9474]
[1742921205971,6.9451,143.97,143.94,6.9461]
[1742921206169,26.72,144.02,143.94,26.72]
[1742921206371,28.43691658,144.07,143.94,26.72]
[1742921206570,6.9452,143.97,143.94,33.6664]
[1742921206770,6.9452,143.97,143.94,26.72]
[1742921207272,0.04396952,143.97,143.94,26.76900774]
[1742921207879,6.946,143.95,143.94,26.76900774]
[1742921208574,6.946,143.95,143.94,0.04900774]
[1742921213778,6.9457,143.96,143.94,0.04900774]
[1742921213980,0.04396952,143.97,143.94,0.04900774]
[1742921214279,0.04396952,143.97,143.96,6.9455]
[1742921218582,6.9433,144.01,143.98,6.9444]
[1742921218780,26.72,144.05,143.95,26.72]
[1742921219182,26.72,144.05,143.97,6.9447]
[1742921219580,0.05264055,144.02,144.0,0.04559937]
[1742921219981,6.9431,144.01,144.0,0.04559937]
[1742921221982,6.9431,144.01,144.0,9.937e-05]
[1742921224980,6.99544055,144.02,144.0,9.937e-05]
[1742921225281,0.05264055,144.02,144.01,6.9431]
[1742921226180,0.05264055,144.02,144.0,9.937e-05]
[1742921226682,6.9431,144.01,144.0,9.937e-05]
[1742921230888,0.05264055,144.02,144.0,9.937e-05]
[1742921231489,6.9431,144.01,144.0,9.937e-05]
[1742921238581,6.99544055,144.02,144.0,9.937e-05]
[1742921239492,6.9431,144.01,144.0,9.937e-05]
[1742921240985,26.75264055,144.02,143.95,26.7]
[1742921241591,0.05264055,144.02,143.95,26.7]
[1742921242092,0.05264055,144.02,143.97,0.04829455]
[1742921243897,6.9445,143.98,143.97,0.04829455]
[1742921245796,6.99244425,143.99,143.97,0.04829455]
[1742921245992,0.04814425,143.99,143.97,0.04829455]
[1742921246797,0.04814425,143.99,143.97,26.74829455]
[1742921247196,6.9445,143.98,143.97,26.74829455]
[1742921248097,6.9445,143.98,143.97,0.04829455]
[1742921248594,0.04814425,143.99,143.97,0.04829455]
[1742921250297,6.99254425,143.99,143.97,0.04829455]
[1742921251794,6.9445,143.98,143.97,0.04829455]
[1742921255397,6.9465,143.94,143.88,229.16]
[1742921255604,6.9465,143.94,143.89,26.68]
[1742921255805,26.68,144.01,143.9,26.68]
[1742921256000,43.09899946,144.01,143.88,229.16]
[1742921256398,6.9482,143.91,143.89,26.68]
[1742921256799,26.68,143.97,143.88,236.109]
[1742921256998,0.05126683,143.91,143.89,26.68]
[1742921257197,26.68,143.97,143.89,26.68]
[1742921257604,6.9482,143.91,143.89,26.68]
[1742921257813,0.04463317,143.94,143.83,9.53612428]
[1742921258006,26.68,143.97,143.84,26.68]
[1742921258310,0.05157242,143.9,143.88,6.949]
[1742921258609,6.9482,143.91,143.88,33.629]
[1742921258801,0.0460321,143.9,143.88,33.629]
[1742921259001,0.0460321,143.9,143.89,6.9489]
[1742921259999,28.43691658,144.01,143.89,6.94]
[1742921260202,28.43691658,144.01,143.88,26.68]
[1742921261204,0.0473885,143.96,143.94,6.9461]
[1742921261412,6.945,143.97,143.94,33.6261]
[1742921261604,0.04641236,143.96,143.94,33.67962127]
[1742921262201,0.04641236,143.96,143.95,6.946]
[1742921265307,28.43691658,144.06,143.94,26.73352127]
[1742921265516,28.43691658,144.06,143.94,26.68]
[1742921266018,28.43691658,144.06,144.0,6.9435]
[1742921266019,6.9424,144.03,144.0,6.9435]
[1742921266315,6.98761124,144.03,144.0,33.66812334]
[1742921268722,0.04521124,144.03,144.0,26.72462334]
[1742921269020,0.04521124,144.03,144.01,6.9431]
[1742921269220,0.04521124,144.03,144.0,26.72462334]
[1742921270023,0.04521124,144.03,144.02,6.9426]
[1742921273526,6.9384,144.11,144.07,6.9399]
[1742921273728,28.43691658,144.12,144.07,26.66]
[1742921274221,45.31480167,144.14,144.07,26.66]
[1742921274425,6.9391,144.1,144.07,26.66]
[1742921274621,6.9391,144.1,144.09,0.0481938]
[1742921275019,6.9384,144.11,144.09,0.0481938]
[1742921275517,0.04432994,144.12,144.09,0.0481938]
[1742921276820,6.98242994,144.12,144.09,0.0481938]
[1742921277020,0.04432994,144.12,144.09,0.0481938]
[1742921277924,6.9385,144.11,144.09,0.0481938]
[1742921278425,0.04432994,144.12,144.09,0.0481938]
[1742921278727,6.9383,144.11,144.09,0.0481938]
[1742921279025,0.04432994,144.12,144.09,0.0481938]
[1742921279827,6.9387,144.1,144.09,0.0481938]
[1742921280230,0.04432994,144.12,144.09,0.0481938]
[1742921280622,6.9385,144.11,144.09,0.0481938]
[1742921280926,0.04432994,144.12,144.09,0.0481938]
[1742921281123,6.9383,144.11,144.09,0.0481938]